[Event "*** Titled Tuesday Blitz"]
[Site "Chess.com"]
[Date "2019.02.05"]
[Round "2"]
[White "GameOverBro"]
[Black "Manukyan_Artak"]
[Result "1-0"]
[WhiteElo "2506"]
[BlackElo "2356"]
[TimeControl "180+2"]
[EndTime "13:24:31 PST"]
[Termination "GameOverBro won by resignation"]

1. e4 {[%clk 0:02:58.9]} 1... c6 {[%clk 0:03:01.2]} 2. Nc3 {[%clk 0:02:59.5]}
2... d5 {[%clk 0:03:03.1]} 3. Nf3 {[%clk 0:03:00.1]} 3... Bg4 {[%clk 0:03:03.4]}
4. h3 {[%clk 0:03:01]} 4... Bxf3 {[%clk 0:03:04.1]} 5. Qxf3 {[%clk 0:03:02.9]}
5... Nf6 {[%clk 0:03:05.7]} 6. d3 {[%clk 0:03:04]} 6... e6 {[%clk 0:03:02.4]} 7.
a3 {[%clk 0:03:03.7]} 7... Nbd7 {[%clk 0:03:00.8]} 8. g4 {[%clk 0:03:04.1]} 8...
h6 {[%clk 0:02:59.1]} 9. h4 {[%clk 0:02:58.6]} 9... Qb6 {[%clk 0:02:47.6]} 10.
g5 {[%clk 0:02:42.2]} 10... hxg5 {[%clk 0:02:48.1]} 11. hxg5 {[%clk 0:02:44.1]}
11... Rxh1 {[%clk 0:02:49.4]} 12. Qxh1 {[%clk 0:02:45.7]} 12... Ng8 {[%clk
0:02:50.7]} 13. g6 {[%clk 0:02:43.1]} 13... fxg6 {[%clk 0:02:46.2]} 14. Qh7
{[%clk 0:02:36]} 14... Ne7 {[%clk 0:02:46.2]} 15. Bh3 {[%clk 0:02:36.1]} 15...
c5 {[%clk 0:02:38.1]} 16. Bd2 {[%clk 0:01:40.8]} 16... O-O-O {[%clk 0:02:26.6]}
17. O-O-O {[%clk 0:01:29.5]} 17... Nf6 {[%clk 0:02:26.7]} 18. Qh4 {[%clk
0:01:26.4]} 18... Kb8 {[%clk 0:02:16.7]} 19. Qg3+ {[%clk 0:01:07.4]} 19... Ka8
{[%clk 0:02:16.1]} 20. Qe5 {[%clk 0:01:00.8]} 20... d4 {[%clk 0:01:42.9]} 21.
Na4 {[%clk 0:00:57.5]} 21... Qc6 {[%clk 0:01:35.5]} 22. Nxc5 {[%clk 0:00:56.4]}
22... Rc8 {[%clk 0:01:31]} 23. Bb4 {[%clk 0:00:36.4]} 23... b6 {[%clk
0:01:28.8]} 24. Bxe6 {[%clk 0:00:29.5]} 24... bxc5 {[%clk 0:01:28.6]} 25. Bxc8
{[%clk 0:00:26.9]} 25... cxb4 {[%clk 0:01:28]} 26. Be6 {[%clk 0:00:26.2]} 26...
bxa3 {[%clk 0:01:25.8]} 27. bxa3 {[%clk 0:00:23.4]} 27... Nc8 {[%clk 0:01:12.1]}
28. Bc4 {[%clk 0:00:19.3]} 28... Bxa3+ {[%clk 0:01:06.1]} 29. Kd2 {[%clk
0:00:20.7]} 29... Nb6 {[%clk 0:01:06.8]} 30. Qxd4 {[%clk 0:00:20.1]} 30... Nxc4+
{[%clk 0:01:03.1]} 31. dxc4 {[%clk 0:00:22]} 31... Bb4+ {[%clk 0:00:52.7]} 32.
Ke2 {[%clk 0:00:22.7]} 32... Qxe4+ {[%clk 0:00:50.8]} 33. Qxe4+ {[%clk
0:00:24.1]} 33... Nxe4 {[%clk 0:00:52.5]} 34. Rd8+ {[%clk 0:00:25.4]} 34... Kb7
{[%clk 0:00:53.3]} 35. Rd7+ {[%clk 0:00:27.3]} 35... Kb6 {[%clk 0:00:53.6]} 36.
Rxg7 {[%clk 0:00:29.2]} 36... g5 {[%clk 0:00:52.1]} 37. f3 {[%clk 0:00:30.6]}
37... Nd6 {[%clk 0:00:51.8]} 38. Rxg5 {[%clk 0:00:30.6]} 38... Nxc4 {[%clk
0:00:51.5]} 39. f4 {[%clk 0:00:30.1]} 39... a5 {[%clk 0:00:51.7]} 40. Kd3 {[%clk
0:00:30.6]} 40... Nd6 {[%clk 0:00:51.5]} 41. c3 {[%clk 0:00:31]} 41... Bc5
{[%clk 0:00:51.9]} 42. Kc2 {[%clk 0:00:30.7]} 42... a4 {[%clk 0:00:51.9]} 43. f5
{[%clk 0:00:28.6]} 43... Nc4 {[%clk 0:00:48.1]} 44. f6 {[%clk 0:00:28.2]} 44...
Ne3+ {[%clk 0:00:45.1]} 45. Kb2 {[%clk 0:00:25]} 45... Nd1+ {[%clk 0:00:46.2]}
46. Kc2 {[%clk 0:00:25.3]} 46... Ne3+ {[%clk 0:00:47.1]} 47. Kb1 {[%clk
0:00:24.9]} 47... Bd6 {[%clk 0:00:40]} 48. f7 {[%clk 0:00:23.9]} 48... Kc7
{[%clk 0:00:32.4]} 49. Rg8 {[%clk 0:00:20.4]} 49... Nd1 {[%clk 0:00:28.8]} 50.
Kc2 {[%clk 0:00:20.7]} 50... Ne3+ {[%clk 0:00:29.4]} 51. Kd3 {[%clk 0:00:22]}
51... Nd5 {[%clk 0:00:22.2]} 52. f8=Q {[%clk 0:00:22.9]} 52... Bxf8 {[%clk
0:00:23.7]} 53. Rxf8 {[%clk 0:00:24.8]} 53... Kb6 {[%clk 0:00:23.7]} 54. Rb8+
{[%clk 0:00:24.2]} 54... Ka5 {[%clk 0:00:22.4]} 55. Ra8+ {[%clk 0:00:25.4]}
55... Kb6 {[%clk 0:00:23.4]} 56. Rxa4 {[%clk 0:00:24.9]} 56... Nc7 {[%clk
0:00:24.6]} 57. Rh4 {[%clk 0:00:25.2]} 57... Kc6 {[%clk 0:00:23]} 58. c4 {[%clk
0:00:26.2]} 58... Kd6 {[%clk 0:00:21.6]} 59. Rh6+ {[%clk 0:00:27.2]} 59... Ke5
{[%clk 0:00:21.8]} 60. Rh5+ {[%clk 0:00:26.4]} 60... Kd6 {[%clk 0:00:22.4]} 61.
Kc3 {[%clk 0:00:25.3]} 61... Ne6 {[%clk 0:00:22]} 62. Kb4 {[%clk 0:00:25.4]}
62... Nf4 {[%clk 0:00:23.6]} 63. Rh6+ {[%clk 0:00:25.4]} 63... Ke5 {[%clk
0:00:24.7]} 64. Kb5 {[%clk 0:00:25.8]} 64... Ne6 {[%clk 0:00:21.4]} 65. Rxe6+
{[%clk 0:00:25]} 65... Kxe6 {[%clk 0:00:22.4]} 66. Kc6 {[%clk 0:00:26.6]} 66...
Ke7 {[%clk 0:00:23.5]} 67. Kc7 {[%clk 0:00:27.6]} 67... Ke6 {[%clk 0:00:24.8]}
68. c5 {[%clk 0:00:29.3]} 1-0

[Event "*** Titled Tuesday Blitz"]
[Site "Chess.com"]
[Date "2019.02.05"]
[Round "2"]
[White "ZeroRealtorFade"]
[Black "Quiet_Desperation"]
[Result "0-1"]
[WhiteElo "2248"]
[BlackElo "2405"]
[TimeControl "180+2"]
[EndTime "13:24:32 PST"]
[Termination "Quiet_Desperation won by resignation"]

1. d4 {[%clk 0:03:00.1]} 1... Nf6 {[%clk 0:03:00]} 2. Bf4 {[%clk 0:03:01.3]}
2... e6 {[%clk 0:02:57.2]} 3. e3 {[%clk 0:03:02.3]} 3... b6 {[%clk 0:02:58.5]}
4. c3 {[%clk 0:03:03.5]} 4... Bb7 {[%clk 0:02:59.9]} 5. Nd2 {[%clk 0:03:04.9]}
5... Be7 {[%clk 0:03:01.4]} 6. Ngf3 {[%clk 0:03:06.2]} 6... O-O {[%clk 0:03:03]}
7. Bd3 {[%clk 0:03:07.7]} 7... d5 {[%clk 0:03:04.7]} 8. O-O {[%clk 0:03:09]}
8... c5 {[%clk 0:03:05.8]} 9. Ne5 {[%clk 0:03:10.1]} 9... Nc6 {[%clk 0:03:03]}
10. Qc2 {[%clk 0:03:10.7]} 10... Rc8 {[%clk 0:03:00.1]} 11. Nxc6 {[%clk
0:03:09.6]} 11... Bxc6 {[%clk 0:03:00.6]} 12. Be5 {[%clk 0:03:10.8]} 12... g6
{[%clk 0:02:58.7]} 13. Nf3 {[%clk 0:03:07.4]} 13... Ne4 {[%clk 0:02:51.7]} 14.
Ba6 {[%clk 0:03:04.6]} 14... Ra8 {[%clk 0:02:49]} 15. Bd3 {[%clk 0:03:00.8]}
15... f5 {[%clk 0:02:46]} 16. Nd2 {[%clk 0:02:56.6]} 16... Bd6 {[%clk
0:02:42.1]} 17. Bxd6 {[%clk 0:02:55.8]} 17... Qxd6 {[%clk 0:02:42.8]} 18. f3
{[%clk 0:02:51.4]} 18... Ng5 {[%clk 0:02:39.8]} 19. f4 {[%clk 0:02:44.5]} 19...
Ne4 {[%clk 0:02:37.4]} 20. Nxe4 {[%clk 0:02:45.3]} 20... fxe4 {[%clk 0:02:38]}
21. Be2 {[%clk 0:02:46.4]} 21... Rac8 {[%clk 0:02:35.3]} 22. Ba6 {[%clk
0:02:37.5]} 22... Rc7 {[%clk 0:02:35.5]} 23. Be2 {[%clk 0:02:37.6]} 23... cxd4
{[%clk 0:02:34.6]} 24. exd4 {[%clk 0:02:38.2]} 24... Rxf4 {[%clk 0:02:35.4]} 25.
Rxf4 {[%clk 0:02:38.4]} 25... Qxf4 {[%clk 0:02:36.6]} 26. Rf1 {[%clk 0:02:39.2]}
26... Qe3+ {[%clk 0:02:37.8]} 27. Kh1 {[%clk 0:02:40.4]} 27... Rf7 {[%clk
0:02:29.5]} 28. Rxf7 {[%clk 0:02:41.1]} 28... Kxf7 {[%clk 0:02:30.6]} 29. Qd1
{[%clk 0:02:41.1]} 29... Qf2 {[%clk 0:02:25.8]} 30. h3 {[%clk 0:02:36.8]} 30...
Kg7 {[%clk 0:02:10.3]} 31. Qf1 {[%clk 0:02:25.1]} 31... Qxf1+ {[%clk 0:02:09.2]}
32. Bxf1 {[%clk 0:02:26.9]} 32... Kf6 {[%clk 0:02:10]} 33. Kg1 {[%clk
0:02:27.5]} 33... e5 {[%clk 0:02:11.3]} 34. Kf2 {[%clk 0:02:25.6]} 34... exd4
{[%clk 0:02:11.6]} 35. cxd4 {[%clk 0:02:27.5]} 35... Kf5 {[%clk 0:02:06.5]} 36.
Ke3 {[%clk 0:02:28.3]} 36... h5 {[%clk 0:02:05.1]} 37. g3 {[%clk 0:02:26.2]}
37... g5 {[%clk 0:01:59.2]} 38. Be2 {[%clk 0:02:25.6]} 38... h4 {[%clk
0:01:59.6]} 39. Bg4+ {[%clk 0:02:21.4]} 39... Kf6 {[%clk 0:02:00.5]} 40. gxh4
{[%clk 0:02:15.2]} 40... gxh4 {[%clk 0:02:02.4]} 41. Kf4 {[%clk 0:02:10.7]}
41... Bb5 {[%clk 0:01:47.2]} 42. Bc8 {[%clk 0:02:08.4]} 42... Bc4 {[%clk
0:01:43]} 43. b3 {[%clk 0:01:59.5]} 43... Bf1 {[%clk 0:01:42.3]} 44. b4 {[%clk
0:01:10.6]} 44... a5 {[%clk 0:01:36.5]} 45. bxa5 {[%clk 0:01:04.9]} 45... bxa5
{[%clk 0:01:37.7]} 46. a3 {[%clk 0:00:37.1]} 46... Bb5 {[%clk 0:01:25.1]} 47.
Bg4 {[%clk 0:00:16.5]} 47... Bc4 {[%clk 0:01:18.5]} 48. Bc8 {[%clk 0:00:15.6]}
48... Ke7 {[%clk 0:01:15.4]} 49. Bf5 {[%clk 0:00:08.2]} 49... Kd6 {[%clk
0:01:11.6]} 50. Bg6 {[%clk 0:00:08.2]} 50... Kc6 {[%clk 0:01:10.1]} 51. Be8+
{[%clk 0:00:08.9]} 51... Kb6 {[%clk 0:01:10.2]} 52. Bd7 {[%clk 0:00:06.5]} 52...
Bb5 {[%clk 0:01:04.2]} 53. Be6 {[%clk 0:00:06.7]} 53... Bc6 {[%clk 0:01:05.5]}
54. Bg4 {[%clk 0:00:05.1]} 54... Kb5 {[%clk 0:01:05.1]} 55. Kg5 {[%clk
0:00:06.3]} 55... Kc4 {[%clk 0:01:05.7]} 56. Kxh4 {[%clk 0:00:07.1]} 56... Kxd4
{[%clk 0:01:07.1]} 57. Kg3 {[%clk 0:00:06.7]} 57... Ke3 {[%clk 0:01:06.8]} 58.
h4 {[%clk 0:00:06.1]} 58... Be8 {[%clk 0:01:03.9]} 59. h5 {[%clk 0:00:06.4]}
59... d4 {[%clk 0:01:03.7]} 60. h6 {[%clk 0:00:07.6]} 60... Bg6 {[%clk
0:01:04.3]} 61. Be6 {[%clk 0:00:05.9]} 61... d3 {[%clk 0:00:54.3]} 62. Bb3
{[%clk 0:00:06.6]} 62... Kd2 {[%clk 0:00:53.3]} 63. Kf4 {[%clk 0:00:07.5]} 63...
e3 {[%clk 0:00:53.4]} 64. Kg5 {[%clk 0:00:08.5]} 64... Bh7 {[%clk 0:00:50.3]}
65. Kf6 {[%clk 0:00:09.5]} 65... e2 {[%clk 0:00:50.7]} 66. Kg7 {[%clk
0:00:10.7]} 66... Be4 {[%clk 0:00:51.5]} 67. Bd5 {[%clk 0:00:07.2]} 67... e1=Q
{[%clk 0:00:48.6]} 0-1

[Event "*** Titled Tuesday Blitz"]
[Site "Chess.com"]
[Date "2019.02.05"]
[Round "2"]
[White "Godzillator"]
[Black "Vugar_Manafov"]
[Result "1/2-1/2"]
[WhiteElo "2399"]
[BlackElo "2386"]
[TimeControl "180+2"]
[EndTime "13:24:36 PST"]
[Termination "Game drawn by agreement"]

1. d4 {[%clk 0:03:01.9]} 1... Nf6 {[%clk 0:03:00.4]} 2. c4 {[%clk 0:03:03.3]}
2... e6 {[%clk 0:03:01]} 3. Nc3 {[%clk 0:03:04.8]} 3... Bb4 {[%clk 0:02:59.5]}
4. Qc2 {[%clk 0:03:06]} 4... O-O {[%clk 0:03:00.2]} 5. a3 {[%clk 0:03:07.3]}
5... Bxc3+ {[%clk 0:03:00.7]} 6. Qxc3 {[%clk 0:03:09]} 6... d6 {[%clk
0:03:02.3]} 7. Bg5 {[%clk 0:03:09.5]} 7... Nbd7 {[%clk 0:03:03.5]} 8. e3 {[%clk
0:03:09.5]} 8... b6 {[%clk 0:03:04.6]} 9. Bd3 {[%clk 0:03:06.7]} 9... Bb7 {[%clk
0:03:05.7]} 10. f3 {[%clk 0:03:08.1]} 10... h6 {[%clk 0:03:04.5]} 11. Bh4 {[%clk
0:03:08.6]} 11... e5 {[%clk 0:03:04]} 12. Ne2 {[%clk 0:03:05.9]} 12... Qe7
{[%clk 0:02:59.9]} 13. O-O {[%clk 0:03:04.8]} 13... Rfe8 {[%clk 0:02:52.1]} 14.
Rfe1 {[%clk 0:03:03.9]} 14... e4 {[%clk 0:02:48.1]} 15. fxe4 {[%clk 0:03:04.8]}
15... Bxe4 {[%clk 0:02:50]} 16. Nf4 {[%clk 0:03:02.5]} 16... Bxd3 {[%clk
0:02:48.7]} 17. Nxd3 {[%clk 0:03:00.7]} 17... Qe4 {[%clk 0:02:49.6]} 18. Bg3
{[%clk 0:02:52]} 18... Qg4 {[%clk 0:02:42]} 19. Nf2 {[%clk 0:02:51.2]} 19... Qg6
{[%clk 0:02:41.6]} 20. Bf4 {[%clk 0:02:46.7]} 20... Ne4 {[%clk 0:02:41.3]} 21.
Qc2 {[%clk 0:02:45.6]} 21... Ndf6 {[%clk 0:02:39.8]} 22. Nxe4 {[%clk 0:02:45.3]}
22... Nxe4 {[%clk 0:02:41.7]} 23. Rf1 {[%clk 0:02:41.1]} 23... Re7 {[%clk
0:02:38.2]} 24. Rae1 {[%clk 0:02:31.8]} 24... Rae8 {[%clk 0:02:36.4]} 25. Qd1
{[%clk 0:02:27.1]} 25... a5 {[%clk 0:02:25.9]} 26. b4 {[%clk 0:02:22.5]} 26...
axb4 {[%clk 0:02:24.5]} 27. axb4 {[%clk 0:02:23.8]} 27... Ra8 {[%clk 0:02:23.9]}
28. Qc2 {[%clk 0:02:07.4]} 28... c6 {[%clk 0:02:17.8]} 29. d5 {[%clk 0:02:00]}
29... c5 {[%clk 0:02:13.3]} 30. bxc5 {[%clk 0:01:59.8]} 30... bxc5 {[%clk
0:02:15.2]} 31. Ra1 {[%clk 0:01:57.2]} 31... Rea7 {[%clk 0:02:15.3]} 32. Rxa7
{[%clk 0:01:57.5]} 32... Rxa7 {[%clk 0:02:17.2]} 33. Rb1 {[%clk 0:01:57.7]}
33... f5 {[%clk 0:02:13.2]} 34. h3 {[%clk 0:01:47.1]} 34... Qf6 {[%clk
0:02:07.6]} 35. Kh2 {[%clk 0:01:39.2]} 35... Ra3 {[%clk 0:01:45.7]} 36. Rb3
{[%clk 0:01:28]} 36... Ra1 {[%clk 0:01:39.2]} 37. Rb8+ {[%clk 0:01:13.3]} 37...
Kh7 {[%clk 0:01:35.8]} 38. Qb2 {[%clk 0:01:14]} 38... Qxb2 {[%clk 0:01:11.7]}
39. Rxb2 {[%clk 0:01:14.9]} 39... g5 {[%clk 0:00:52.5]} 40. Bg3 {[%clk
0:01:14.8]} 40... Ra3 {[%clk 0:00:49]} 41. Rb7+ {[%clk 0:01:12.2]} 41... Kg8
{[%clk 0:00:47.1]} 42. Rd7 {[%clk 0:01:10.7]} 42... f4 {[%clk 0:00:44.9]} 43.
exf4 {[%clk 0:00:57.9]} 43... Nxg3 {[%clk 0:00:40.1]} 44. fxg5 {[%clk
0:00:58.9]} 44... hxg5 {[%clk 0:00:41.8]} 45. Rxd6 {[%clk 0:00:59.3]} 45... Nf1+
{[%clk 0:00:43]} 46. Kg1 {[%clk 0:00:59.9]} 46... Ne3 {[%clk 0:00:44.6]} 47. Rc6
{[%clk 0:01:00.6]} 47... Ra5 {[%clk 0:00:29]} 48. d6 {[%clk 0:00:52.9]} 48...
Ra7 {[%clk 0:00:20.7]} 49. Rc7 {[%clk 0:00:52.5]} 49... Ra1+ {[%clk 0:00:21]}
50. Kf2 {[%clk 0:00:52.7]} 50... Nd1+ {[%clk 0:00:22.2]} 51. Kg3 {[%clk
0:00:53.1]} 51... Ra3+ {[%clk 0:00:17.2]} 52. Kg4 {[%clk 0:00:53]} 52... Rd3
{[%clk 0:00:18.4]} 53. d7 {[%clk 0:00:52.8]} 53... Kf8 {[%clk 0:00:19.9]} 54.
Rxc5 {[%clk 0:00:48.4]} 54... Rxd7 {[%clk 0:00:18.8]} 55. Kxg5 {[%clk
0:00:49.5]} 55... Ne3 {[%clk 0:00:19.2]} 56. g4 {[%clk 0:00:49.3]} 56... Rf7
{[%clk 0:00:18]} 57. Rc8+ {[%clk 0:00:46.5]} 57... Kg7 {[%clk 0:00:18.3]} 58. c5
{[%clk 0:00:46.8]} 58... Nc4 {[%clk 0:00:15.8]} 59. c6 {[%clk 0:00:42.3]} 59...
Nd6 {[%clk 0:00:15.1]} 60. Rd8 {[%clk 0:00:40.6]} 60... Ne4+ {[%clk 0:00:15.6]}
61. Kh4 {[%clk 0:00:37.2]} 61... Kf6 {[%clk 0:00:14.1]} 62. Rd7 {[%clk
0:00:37.2]} 62... Rf8 {[%clk 0:00:14.2]} 63. g5+ {[%clk 0:00:36.7]} 63... Nxg5
{[%clk 0:00:12.8]} 64. c7 {[%clk 0:00:33.4]} 64... Ne6 {[%clk 0:00:13.2]} 65.
Rd8 {[%clk 0:00:30.4]} 65... Rxd8 {[%clk 0:00:08.9]} 66. cxd8=Q+ {[%clk
0:00:31.2]} 66... Nxd8 {[%clk 0:00:10.8]} 1/2-1/2

[Event "*** Titled Tuesday Blitz"]
[Site "Chess.com"]
[Date "2019.02.05"]
[Round "2"]
[White "ShadyH9"]
[Black "HindsightIs2700"]
[Result "0-1"]
[WhiteElo "2303"]
[BlackElo "2261"]
[TimeControl "180+2"]
[EndTime "13:24:45 PST"]
[Termination "HindsightIs2700 won by resignation"]

1. d4 {[%clk 0:03:01.9]} 1... Nf6 {[%clk 0:03:00.5]} 2. c4 {[%clk 0:03:02.7]}
2... e6 {[%clk 0:03:01.9]} 3. Nf3 {[%clk 0:03:02.6]} 3... b6 {[%clk 0:03:03]} 4.
g3 {[%clk 0:03:01.8]} 4... Ba6 {[%clk 0:03:04.1]} 5. b3 {[%clk 0:03:02.3]} 5...
Bb4+ {[%clk 0:03:00.7]} 6. Bd2 {[%clk 0:03:03.1]} 6... Be7 {[%clk 0:03:01.2]} 7.
Nc3 {[%clk 0:03:03.7]} 7... d5 {[%clk 0:03:01.2]} 8. cxd5 {[%clk 0:03:01.8]}
8... exd5 {[%clk 0:03:03.1]} 9. Bg2 {[%clk 0:03:01.9]} 9... O-O {[%clk
0:03:04.1]} 10. O-O {[%clk 0:03:02.7]} 10... Re8 {[%clk 0:03:04.2]} 11. Rc1
{[%clk 0:03:01.8]} 11... Nbd7 {[%clk 0:02:59.6]} 12. Ne5 {[%clk 0:02:54.8]}
12... Bb7 {[%clk 0:02:58.4]} 13. Bf4 {[%clk 0:02:43.7]} 13... Nf8 {[%clk
0:02:56.2]} 14. Nb5 {[%clk 0:02:23.4]} 14... c5 {[%clk 0:02:42.6]} 15. dxc5
{[%clk 0:02:04.8]} 15... bxc5 {[%clk 0:02:44.5]} 16. Nc4 {[%clk 0:02:03.8]}
16... Ne6 {[%clk 0:02:38.6]} 17. Be5 {[%clk 0:01:48.8]} 17... Ng4 {[%clk
0:02:38.7]} 18. Bc3 {[%clk 0:01:23.6]} 18... Ba6 {[%clk 0:02:15.4]} 19. Nca3
{[%clk 0:01:02.8]} 19... Qb6 {[%clk 0:01:26.4]} 20. e4 {[%clk 0:00:44.4]} 20...
Nxh2 {[%clk 0:01:04]} 21. Kxh2 {[%clk 0:00:41.5]} 21... d4 {[%clk 0:01:05.3]}
22. Bd2 {[%clk 0:00:31.2]} 22... Bxb5 {[%clk 0:01:04.3]} 23. Nxb5 {[%clk
0:00:31.8]} 23... Qxb5 {[%clk 0:01:05.6]} 24. e5 {[%clk 0:00:26.6]} 24... Rad8
{[%clk 0:01:03.9]} 25. Qg4 {[%clk 0:00:24.9]} 25... Qd3 {[%clk 0:00:54.6]} 26.
Rcd1 {[%clk 0:00:21.4]} 26... Qg6 {[%clk 0:00:52.4]} 27. Qe2 {[%clk 0:00:21.1]}
27... d3 {[%clk 0:00:49.7]} 28. Qe4 {[%clk 0:00:12.8]} 28... Qxe4 {[%clk
0:00:42.8]} 29. Bxe4 {[%clk 0:00:14.7]} 29... Rd4 {[%clk 0:00:42.1]} 30. f3
{[%clk 0:00:13.2]} 30... Rc8 {[%clk 0:00:19.5]} 31. Be3 {[%clk 0:00:13.8]} 31...
Rdd8 {[%clk 0:00:08.9]} 32. Rxd3 {[%clk 0:00:14.5]} 32... Rxd3 {[%clk
0:00:10.1]} 33. Bxd3 {[%clk 0:00:16.3]} 33... Rd8 {[%clk 0:00:11.7]} 34. Bc4
{[%clk 0:00:16.4]} 34... Nd4 {[%clk 0:00:11.8]} 35. Bxd4 {[%clk 0:00:13.6]}
35... Rxd4 {[%clk 0:00:12.1]} 36. Rf2 {[%clk 0:00:13.3]} 36... Kf8 {[%clk
0:00:11.5]} 37. f4 {[%clk 0:00:14.3]} 37... Ke8 {[%clk 0:00:11.6]} 38. Kg2
{[%clk 0:00:15.1]} 38... g6 {[%clk 0:00:11.9]} 39. Re2 {[%clk 0:00:15.4]} 39...
Bd8 {[%clk 0:00:09.3]} 40. e6 {[%clk 0:00:15.4]} 40... f5 {[%clk 0:00:10.6]} 41.
a4 {[%clk 0:00:15.1]} 41... Ke7 {[%clk 0:00:10.4]} 42. Re5 {[%clk 0:00:15.2]}
42... Rd2+ {[%clk 0:00:09.3]} 43. Kf3 {[%clk 0:00:15.5]} 43... Bb6 {[%clk
0:00:10.5]} 44. Re1 {[%clk 0:00:12.9]} 44... Bc7 {[%clk 0:00:09.5]} 45. Rh1
{[%clk 0:00:12.9]} 45... h5 {[%clk 0:00:09.6]} 46. Rc1 {[%clk 0:00:13.2]} 46...
Rd4 {[%clk 0:00:10.2]} 47. Re1 {[%clk 0:00:12.9]} 47... Bd6 {[%clk 0:00:11.1]}
48. Re2 {[%clk 0:00:12.8]} 48... Rd1 {[%clk 0:00:11.5]} 49. Re3 {[%clk
0:00:11.9]} 49... Rg1 {[%clk 0:00:10.8]} 50. Rd3 {[%clk 0:00:10.7]} 50... Rf1+
{[%clk 0:00:10.2]} 51. Kg2 {[%clk 0:00:11]} 51... Rb1 {[%clk 0:00:11.1]} 52. Kf2
{[%clk 0:00:10.5]} 52... Rb2+ {[%clk 0:00:12.3]} 53. Kf3 {[%clk 0:00:11]} 53...
a5 {[%clk 0:00:11.3]} 54. Rd1 {[%clk 0:00:09.5]} 54... Rc2 {[%clk 0:00:11.6]}
55. Rd3 {[%clk 0:00:09.8]} 55... Rc1 {[%clk 0:00:12.4]} 56. Rd2 {[%clk
0:00:09.9]} 56... Rc3+ {[%clk 0:00:13.5]} 57. Kg2 {[%clk 0:00:08.7]} 57... Re3
{[%clk 0:00:13.7]} 58. Kf2 {[%clk 0:00:07.4]} 58... Rc3 {[%clk 0:00:14.6]} 59.
Re2 {[%clk 0:00:08.1]} 59... g5 {[%clk 0:00:14.1]} 60. fxg5 {[%clk 0:00:07.9]}
60... Bxg3+ {[%clk 0:00:15.2]} 61. Kg2 {[%clk 0:00:08.6]} 61... Bf4 {[%clk
0:00:15.5]} 62. Rd2 {[%clk 0:00:07.7]} 62... Bxd2 {[%clk 0:00:15.8]} 0-1

[Event "*** Titled Tuesday Blitz"]
[Site "Chess.com"]
[Date "2019.02.05"]
[Round "2"]
[White "TheBigBoss04"]
[Black "schoolmeester"]
[Result "1/2-1/2"]
[WhiteElo "2541"]
[BlackElo "2721"]
[TimeControl "180+2"]
[EndTime "13:24:48 PST"]
[Termination "Game drawn by agreement"]

1. b3 {[%clk 0:03:01.4]} 1... d5 {[%clk 0:02:59.5]} 2. Bb2 {[%clk 0:03:03.3]}
2... Bf5 {[%clk 0:02:59.4]} 3. Nf3 {[%clk 0:03:02.7]} 3... e6 {[%clk 0:02:58.7]}
4. g3 {[%clk 0:03:00]} 4... Nf6 {[%clk 0:02:56.7]} 5. Bg2 {[%clk 0:03:00.8]}
5... c6 {[%clk 0:02:55]} 6. O-O {[%clk 0:03:01.1]} 6... Nbd7 {[%clk 0:02:55]} 7.
c4 {[%clk 0:03:01.2]} 7... Bd6 {[%clk 0:02:54.6]} 8. d3 {[%clk 0:02:46.1]} 8...
Qe7 {[%clk 0:02:49.3]} 9. a3 {[%clk 0:02:43.9]} 9... O-O {[%clk 0:02:44.9]} 10.
Nbd2 {[%clk 0:02:41.8]} 10... e5 {[%clk 0:02:40.2]} 11. Qc2 {[%clk 0:02:20.5]}
11... h6 {[%clk 0:02:28.6]} 12. e4 {[%clk 0:01:59.6]} 12... Bh7 {[%clk
0:02:25.3]} 13. exd5 {[%clk 0:01:54.1]} 13... cxd5 {[%clk 0:02:25]} 14. Rfe1
{[%clk 0:01:54.6]} 14... Rac8 {[%clk 0:02:19.2]} 15. Qc3 {[%clk 0:01:44]} 15...
d4 {[%clk 0:02:12.6]} 16. Nxd4 {[%clk 0:01:05.8]} 16... Nc5 {[%clk 0:02:06.1]}
17. Nb5 {[%clk 0:00:57.6]} 17... Nxd3 {[%clk 0:02:04]} 18. Nxd6 {[%clk
0:00:53.1]} 18... Qxd6 {[%clk 0:02:03.3]} 19. Re3 {[%clk 0:00:53.3]} 19... Rcd8
{[%clk 0:01:51.2]} 20. Ne4 {[%clk 0:00:38.6]} 20... Bxe4 {[%clk 0:01:47.1]} 21.
Bxe4 {[%clk 0:00:37.6]} 21... Nxb2 {[%clk 0:01:39.8]} 22. Qxb2 {[%clk 0:00:36]}
22... Nxe4 {[%clk 0:01:34.2]} 23. Rxe4 {[%clk 0:00:36.8]} 23... f6 {[%clk
0:01:34.2]} 24. Rc1 {[%clk 0:00:33.4]} 24... Rd7 {[%clk 0:01:30.5]} 25. c5
{[%clk 0:00:32.3]} 25... Qc6 {[%clk 0:01:24.9]} 26. Rec4 {[%clk 0:00:32.5]}
26... Rfd8 {[%clk 0:01:25.1]} 27. Qe2 {[%clk 0:00:14]} 27... Rd2 {[%clk
0:01:16.9]} 28. Qe1 {[%clk 0:00:15]} 28... Rb2 {[%clk 0:01:10.1]} 29. Rd1 {[%clk
0:00:13.2]} 29... Rd5 {[%clk 0:01:09.3]} 30. b4 {[%clk 0:00:09.8]} 30... Qd7
{[%clk 0:01:08.1]} 31. Rcc1 {[%clk 0:00:08.8]} 31... Rdd2 {[%clk 0:01:03.5]} 32.
Rxd2 {[%clk 0:00:09.2]} 32... Rxd2 {[%clk 0:01:05]} 33. b5 {[%clk 0:00:09.9]}
33... Rd5 {[%clk 0:00:54.4]} 34. c6 {[%clk 0:00:10.9]} 34... bxc6 {[%clk
0:00:52.8]} 35. bxc6 {[%clk 0:00:12.3]} 35... Qc7 {[%clk 0:00:54.2]} 36. Qb4
{[%clk 0:00:13.5]} 36... Rd8 {[%clk 0:00:49.5]} 37. Qb7 {[%clk 0:00:14.3]} 37...
Rc8 {[%clk 0:00:49.3]} 38. Kg2 {[%clk 0:00:13.3]} 38... Kh7 {[%clk 0:00:44.4]}
39. a4 {[%clk 0:00:12.3]} 39... a5 {[%clk 0:00:42.8]} 40. Qxc7 {[%clk
0:00:11.7]} 40... Rxc7 {[%clk 0:00:43.5]} 41. Kf3 {[%clk 0:00:13.1]} 41... f5
{[%clk 0:00:41.6]} 42. g4 {[%clk 0:00:13.8]} 42... Kg6 {[%clk 0:00:42.4]} 43.
gxf5+ {[%clk 0:00:14]} 43... Kxf5 {[%clk 0:00:43.7]} 44. Rc5 {[%clk 0:00:15.9]}
44... g5 {[%clk 0:00:42.7]} 45. Ke3 {[%clk 0:00:15.1]} 45... h5 {[%clk
0:00:42.4]} 46. h3 {[%clk 0:00:15.5]} 46... g4 {[%clk 0:00:41.2]} 47. hxg4+
{[%clk 0:00:16.4]} 47... Kxg4 {[%clk 0:00:43.1]} 48. Ke4 {[%clk 0:00:10]} 48...
h4 {[%clk 0:00:44.3]} 49. Kd5 {[%clk 0:00:02]} 49... h3 {[%clk 0:00:45.1]} 50.
Kd6 {[%clk 0:00:03.4]} 50... h2 {[%clk 0:00:44.3]} 51. Rc1 {[%clk 0:00:03.7]}
51... Rh7 {[%clk 0:00:45.4]} 52. c7 {[%clk 0:00:04.5]} 52... Rh8 {[%clk
0:00:41.1]} 53. Rh1 {[%clk 0:00:04.6]} 53... Kh3 {[%clk 0:00:31.5]} 54. Kxe5
{[%clk 0:00:05.8]} 54... Kg2 {[%clk 0:00:28.5]} 55. Rxh2+ {[%clk 0:00:06.8]}
55... Kxh2 {[%clk 0:00:30.4]} 56. Kd6 {[%clk 0:00:06.1]} 56... Kg2 {[%clk
0:00:27.2]} 57. Kd7 {[%clk 0:00:06.3]} 57... Rh7+ {[%clk 0:00:24.7]} 58. Kc6
{[%clk 0:00:06.5]} 58... Rh8 {[%clk 0:00:24.6]} 59. Kb7 {[%clk 0:00:06.4]} 59...
Kxf2 {[%clk 0:00:24.7]} 60. c8=Q {[%clk 0:00:07.2]} 60... Rxc8 {[%clk
0:00:25.9]} 61. Kxc8 {[%clk 0:00:09.1]} 61... Ke3 {[%clk 0:00:27.3]} 62. Kc7
{[%clk 0:00:09.7]} 62... Kd4 {[%clk 0:00:28.5]} 63. Kb6 {[%clk 0:00:08.8]} 63...
Kd5 {[%clk 0:00:29.8]} 64. Kxa5 {[%clk 0:00:08.6]} 64... Kc6 {[%clk 0:00:30.7]}
65. Ka6 {[%clk 0:00:10.1]} 65... Kc7 {[%clk 0:00:31.6]} 66. Ka7 {[%clk
0:00:10.8]} 66... Kc8 {[%clk 0:00:32.6]} 67. a5 {[%clk 0:00:11.3]} 67... Kc7
{[%clk 0:00:33.6]} 68. a6 {[%clk 0:00:12.1]} 68... Kc8 {[%clk 0:00:34.7]}
1/2-1/2